bitfinex/quotes_BTCUSD_20230114
["timestamp","ask_amount","ask_price","bid_price","bid_amount"]
[1673714716912,0.14340394,20808.0,20807.0,1.884615]
[1673714720403,0.14340394,20808.0,20807.0,2.365222]
[1673714721150,0.14340394,20808.0,20807.0,0.802548]
[1673714721151,0.32934435,20808.0,20807.0,0.802548]
[1673714721384,0.14340394,20808.0,20807.0,0.002]
[1673714722397,0.14340394,20808.0,20807.0,0.08936]
[1673714723173,0.13384512,20808.0,20807.0,0.08936]
[1673714723416,0.13384512,20808.0,20807.0,0.889908]
[1673714723671,0.00829502,20809.0,20807.0,0.889908]
[1673714723899,0.00829502,20809.0,20808.0,0.4901067]
[1673714724144,0.00829502,20809.0,20808.0,0.3101947]
[1673714725395,0.00829502,20809.0,20808.0,0.900525]
[1673714725627,0.05229502,20809.0,20808.0,1.66919203]
[1673714725884,0.05229502,20809.0,20808.0,1.96919203]
[1673714726133,0.00099057,20813.0,20808.0,2.58893664]
[1673714726382,0.00099057,20813.0,20812.0,0.115]
[1673714726653,0.00840394,20814.0,20812.0,0.62112672]
[1673714726899,0.00840394,20814.0,20813.0,0.179846]
[1673714727149,0.00840394,20814.0,20813.0,0.85103995]
[1673714727391,0.00840394,20814.0,20813.0,1.140782]
[1673714728134,0.00840394,20814.0,20813.0,1.440782]
[1673714728610,0.00840394,20814.0,20813.0,1.140782]
[1673714728857,0.00840394,20814.0,20813.0,1.213782]
[1673714729385,0.00840394,20814.0,20813.0,1.57126448]
[1673714731636,0.00840394,20814.0,20813.0,1.98606448]
[1673714732121,0.00840394,20814.0,20813.0,1.68606448]
[1673714732370,1.15523435,20814.0,20813.0,0.146]
[1673714732622,1.57984183,20814.0,20813.0,0.146]
[1673714732883,1.22948794,20814.0,20813.0,0.146]
[1673714733144,2.05797958,20814.0,20813.0,0.146]
[1673714733402,2.05797958,20814.0,20803.0,1.104085]
[1673714733403,2.34710167,20814.0,20803.0,1.104085]
[1673714733646,0.114,20811.0,20806.0,0.29797545]
[1673714733905,0.114,20811.0,20807.0,0.24712429]
[1673714733906,1.17743241,20810.0,20807.0,0.24712429]
[1673714734174,1.14703841,20810.0,20807.0,0.24712429]
[1673714734423,0.030394,20809.0,20804.0,0.1]
[1673714734652,0.66653141,20808.0,20805.0,0.25122129]
[1673714735137,0.480591,20808.0,20807.0,0.075]
[1673714735375,0.480591,20808.0,20805.0,0.25122129]
[1673714735610,0.480591,20808.0,20805.0,0.39122129]
[1673714735858,0.480575,20809.0,20805.0,0.25122129]
[1673714736105,1.14709341,20809.0,20807.0,0.075]
[1673714736381,0.961153,20809.0,20805.0,0.25122129]
[1673714736623,0.961153,20809.0,20805.0,0.39122129]
[1673714736873,1.14709341,20809.0,20805.0,0.39122129]
[1673714737381,1.14709341,20809.0,20805.0,0.14]
[1673714737618,1.32135812,20809.0,20804.0,0.27186511]
[1673714737862,1.32135812,20809.0,20807.0,0.075]
[1673714738101,1.32135812,20809.0,20804.0,0.46259106]
[1673714738102,0.961153,20809.0,20804.0,0.46259106]
[1673714738344,1.14709341,20809.0,20804.0,0.46259106]
[1673714739372,1.14709341,20809.0,20804.0,0.60359106]
[1673714739630,1.14709341,20809.0,20805.0,0.30240216]
[1673714739876,0.961153,20809.0,20805.0,0.49312811]
[1673714740881,1.14709341,20809.0,20805.0,0.37840216]
[1673714741903,0.961153,20809.0,20805.0,0.30240216]
[1673714742422,0.961153,20809.0,20805.0,0.30940216]
[1673714743411,0.961153,20809.0,20805.0,0.50012811]
[1673714743916,0.961153,20809.0,20805.0,0.98078011]
[1673714744201,0.961153,20809.0,20805.0,0.79005416]
[1673714744690,1.14709341,20809.0,20805.0,0.79005416]
[1673714744933,1.14709341,20809.0,20805.0,0.30940216]
[1673714745431,0.961153,20809.0,20805.0,0.30940216]
[1673714745672,1.14709341,20809.0,20805.0,0.30940216]
[1673714745921,1.62765441,20809.0,20805.0,0.30940216]
[1673714746178,0.030394,20808.0,20805.0,0.30940216]
[1673714746428,0.480607,20807.0,20805.0,0.30940216]
[1673714746956,0.4805351,20807.0,20805.0,0.30940216]
[1673714747203,0.4805351,20807.0,20805.0,0.30240216]
[1673714747448,0.4805351,20807.0,20805.0,0.007]
[1673714747703,0.4805351,20807.0,20803.0,1.1049883]
[1673714747973,0.4805351,20807.0,20805.0,0.007]
[1673714747974,0.66647551,20807.0,20805.0,0.007]
[1673714748232,0.4805351,20807.0,20805.0,0.007]
[1673714748714,0.4805351,20807.0,20804.0,0.31681663]
[1673714748970,0.9611421,20807.0,20804.0,0.31681663]
[1673714749462,0.115,20806.0,20803.0,0.141]
[1673714749729,0.9917,20805.0,20803.0,0.141]
[1673714749977,0.961306,20805.0,20803.0,0.141]
[1673714750514,1.441959,20805.0,20801.0,0.04418001]
[1673714750742,1.62789941,20805.0,20803.0,0.141]
[1673714750987,1.441959,20805.0,20803.0,0.141]
[1673714752505,0.030394,20804.0,20803.0,0.141]
[1673714752782,0.991746,20804.0,20803.0,0.141]
[1673714753351,1.472422,20804.0,20803.0,0.141]
[1673714753613,1.586422,20804.0,20801.0,0.04418001]
[1673714753871,0.1141,20803.0,20801.0,0.04418001]
[1673714754129,0.99184,20802.0,20801.0,0.04418001]
[1673714754400,0.961446,20802.0,20801.0,0.04418001]
[1673714754923,0.961446,20802.0,20801.0,0.05218001]
[1673714755167,1.442169,20802.0,20801.0,0.05218001]
[1673714755416,1.45953702,20802.0,20801.0,0.05218001]
[1673714755922,1.42914302,20802.0,20801.0,0.04418001]
[1673714756652,1.44214302,20802.0,20801.0,0.05418001]
[1673714756908,1.42914302,20802.0,20801.0,0.04418001]
[1673714757169,1.47253702,20802.0,20801.0,0.05418001]
[1673714757667,1.44214302,20802.0,20801.0,0.05418001]
[1673714759142,1.47253702,20802.0,20801.0,0.05418001]
[1673714759395,1.70083702,20802.0,20801.0,0.05418001]
[1673714759652,1.96881793,20802.0,20801.0,0.05418001]
[1673714759905,2.26881793,20802.0,20801.0,0.05418001]
[1673714760165,2.49909106,20802.0,20801.0,0.05418001]
[1673714760960,2.61329106,20802.0,20801.0,0.05418001]
[1673714764499,2.6613377,20802.0,20801.0,0.05418001]
[1673714766767,2.16308366,20802.0,20801.0,0.05418001]
[1673714767307,0.013,20802.0,20801.0,0.57493191]
[1673714767540,0.013,20802.0,20801.0,0.38420596]
[1673714767793,0.013,20802.0,20801.0,0.70414696]
[1673714768549,1e-08,20802.0,20801.0,0.37412101]
[1673714769058,0.00098204,20806.0,20801.0,0.36412101]
[1673714769307,0.001,20802.0,20801.0,0.18418001]
[1673714769559,0.00098204,20806.0,20801.0,0.84486501]
[1673714769817,0.001,20802.0,20801.0,0.66592401]
[1673714770058,0.001,20802.0,20801.0,0.98586501]
[1673714770550,0.001,20802.0,20801.0,1.29161022]
[1673714770804,0.00098204,20806.0,20801.0,1.15061022]
[1673714771092,0.00098204,20806.0,20802.0,0.180073]
[1673714771093,0.00198204,20806.0,20802.0,0.180073]
[1673714771325,0.00198204,20806.0,20802.0,0.19072595]
[1673714771831,0.00098204,20806.0,20802.0,0.19072595]
[1673714772106,0.11698204,20806.0,20802.0,0.19072595]
[1673714772353,0.480655,20805.0,20802.0,0.19072595]
[1673714772602,0.480655,20805.0,20802.0,0.024]
[1673714772861,0.59663404,20806.0,20802.0,0.024]
[1673714773105,0.59663404,20806.0,20802.0,0.21472595]
[1673714773353,0.59663404,20806.0,20803.0,0.28611787]
[1673714774592,0.60963404,20806.0,20803.0,0.28611787]
[1673714775095,0.60961204,20806.0,20803.0,0.28611787]
[1673714775342,0.49461204,20806.0,20803.0,0.28611787]
[1673714776110,0.01398204,20806.0,20803.0,0.95754282]
[1673714776363,0.01398204,20806.0,20803.0,1.24751587]
[1673714776607,0.01398204,20806.0,20803.0,1.36241587]
[1673714776863,0.01398204,20806.0,20804.0,0.319941]
[1673714777102,0.013,20806.0,20805.0,0.179993]
[1673714777360,0.493634,20806.0,20803.0,0.28611787]
[1673714777862,0.480634,20806.0,20803.0,0.28611787]
[1673714778122,0.492634,20806.0,20804.0,0.007]
[1673714778379,0.480634,20806.0,20803.0,0.28611787]
[1673714778651,0.493634,20806.0,20803.0,0.28611787]
[1673714778871,0.493634,20806.0,20804.0,0.30849159]
[1673714779893,0.974264,20806.0,20804.0,0.30849159]
[1673714780145,0.973264,20806.0,20804.0,0.007]
[1673714782972,0.012,20806.0,20805.0,0.32271498]
[1673714784023,0.480627,20807.0,20805.0,0.32271498]
[1673714784273,0.012,20806.0,20805.0,0.33271498]
[1673714784526,1.45389,20806.0,20805.0,0.01]
[1673714784795,1.484284,20806.0,20805.0,0.01]
[1673714785050,1.003654,20806.0,20805.0,0.01]
[1673714785283,0.97326,20806.0,20805.0,0.09736]
[1673714786085,0.97326,20806.0,20805.0,0.01]
[1673714787567,1.003654,20806.0,20805.0,0.01]
[1673714787813,0.97326,20806.0,20805.0,0.01]
[1673714788324,1.003654,20806.0,20805.0,0.01]
[1673714788569,0.97326,20806.0,20805.0,0.01]
[1673714789569,1.45389,20806.0,20805.0,0.01]
[1673714789824,1.484284,20806.0,20805.0,0.01]
[1673714791158,1.45389,20806.0,20805.0,0.01]
[1673714791362,1.484284,20806.0,20805.0,0.01]
[1673714793100,1.45389,20806.0,20805.0,0.01]
[1673714793348,1.484284,20806.0,20805.0,0.01]
[1673714794069,1.45389,20806.0,20805.0,0.01]
[1673714794312,1.484284,20806.0,20805.0,0.01]
[1673714795042,1.89912441,20806.0,20805.0,0.01]
[1673714795299,2.48535336,20806.0,20805.0,0.00990946]
[1673714795541,2.12653949,20806.0,20805.0,0.00990946]
[1673714795799,2.17458613,20806.0,20805.0,0.00990946]
[1673714796051,2.56702672,20806.0,20805.0,0.00990946]
[1673714796316,2.99835759,20806.0,20805.0,0.00671955]
[1673714796546,2.99835759,20806.0,20803.0,0.4]
[1673714796547,0.1,20805.0,20803.0,0.4]
[1673714796799,2.79550277,20804.0,20803.0,0.4]
[1673714797044,3.31353526,20804.0,20803.0,0.4]
[1673714797289,3.60010536,20804.0,20803.0,0.4]
[1673714797534,3.60010388,20804.0,20803.0,0.4]
[1673714797815,2.83943309,20804.0,20803.0,0.4]
[1673714798060,2.86945067,20804.0,20803.0,0.4]
[1673714798558,2.09377467,20804.0,20803.0,0.427]
[1673714798805,1.62076421,20804.0,20803.0,0.427]
[1673714799044,1.477422,20804.0,20803.0,0.427]
[1673714799299,1.477422,20804.0,20803.0,0.4]
[1673714799300,1.472422,20804.0,20803.0,0.4]
[1673714799805,1.477422,20804.0,20803.0,0.427]
[1673714800043,1.447028,20804.0,20803.0,0.427]
[1673714800294,1.472422,20804.0,20803.0,0.4]
[1673714800534,1.472422,20804.0,20803.0,0.427]
[1673714800535,1.447028,20804.0,20803.0,0.427]
[1673714800796,1.477422,20804.0,20803.0,0.427]
[1673714801537,1.472422,20804.0,20803.0,0.4]
[1673714801785,1.524422,20804.0,20803.0,0.405]
[1673714803021,1.494028,20804.0,20803.0,0.405]
[1673714803256,1.524422,20804.0,20803.0,0.405]
[1673714803508,1.494028,20804.0,20803.0,0.405]
[1673714803746,1.524422,20804.0,20803.0,0.405]
[1673714803985,1.494028,20804.0,20803.0,0.405]
[1673714804232,1.524422,20804.0,20803.0,0.405]
[1673714804473,1.494028,20804.0,20803.0,0.405]
[1673714804736,1.524422,20804.0,20803.0,0.405]
[1673714804978,1.494028,20804.0,20803.0,0.405]
[1673714805213,1.524422,20804.0,20803.0,0.405]
[1673714805705,1.494028,20804.0,20803.0,0.405]
[1673714805967,1.524422,20804.0,20803.0,0.405]
[1673714806215,1.494028,20804.0,20803.0,0.405]
[1673714806571,1.66776421,20804.0,20803.0,0.405]
[1673714806837,2.05447827,20804.0,20803.0,0.405]
[1673714807088,1.88268561,20804.0,20803.0,0.405]
[1673714807335,1.88318561,20804.0,20803.0,0.405]
[1673714809189,2.02637467,20804.0,20803.0,0.405]
[1673714809412,1.7398434,20804.0,20803.0,0.405]
[1673714809659,2.03785603,20804.0,20803.0,0.405]
[1673714809913,2.1094659,20804.0,20803.0,0.405]
[1673714810186,2.99625965,20804.0,20803.0,0.405]
[1673714810440,2.69824702,20804.0,20803.0,0.405]
[1673714810687,2.41171575,20804.0,20803.0,0.405]
[1673714810948,2.05363615,20804.0,20803.0,0.405]
[1673714813562,2.55189019,20804.0,20803.0,0.405]
[1673714814216,2.9235265,20804.0,20803.0,0.405]
[1673714815543,2.42527246,20804.0,20803.0,0.405]
[1673714815985,2.9235265,20804.0,20803.0,0.405]
[1673714816416,2.42527246,20804.0,20803.0,0.405]
[1673714816944,2.41160054,20804.0,20803.0,0.405]
[1673714819488,2.41160054,20804.0,20803.0,0.40488222]
[1673714819932,2.05363615,20804.0,20803.0,0.40488222]
[1673714820190,2.55189019,20804.0,20803.0,0.40488222]
[1673714820406,3.20552106,20804.0,20803.0,0.02788706]
[1673714820629,0.01317587,20802.0,20800.0,0.01286918]
[1673714820920,0.01317587,20802.0,20798.0,0.01125034]
[1673714820921,0.54374114,20801.0,20798.0,0.01125034]
[1673714821173,2.81344447,20800.0,20798.0,0.01125034]
[1673714821441,1.05515885,20799.0,20798.0,0.01125034]
[1673714821912,2.53811648,20799.0,20798.0,0.01125034]
[1673714821915,2.53813755,20799.0,20798.0,0.01125034]
[1673714822448,2.18018349,20799.0,20798.0,0.01125034]
[1673714822956,2.13213685,20799.0,20798.0,0.01125034]
[1673714823205,1.99323751,20799.0,20798.0,0.01125034]
[1673714823768,2.17728415,20799.0,20798.0,0.01125034]
[1673714824027,1.50762453,20799.0,20798.0,0.01125034]
[1673714824284,1.13529092,20799.0,20798.0,0.09861034]
[1673714824530,0.991978,20799.0,20798.0,0.09861034]
[1673714824822,0.991978,20799.0,20798.0,0.09961034]
[1673714824823,1.128978,20799.0,20798.0,0.09961034]
[1673714825317,1.218584,20799.0,20798.0,0.10161034]
[1673714825623,1.218584,20799.0,20798.0,0.01425034]
[1673714825624,1.248978,20799.0,20798.0,0.01425034]
[1673714825868,1.248978,20799.0,20798.0,0.33389743]
[1673714825869,0.480792,20799.0,20798.0,0.33389743]
[1673714826361,0.511186,20799.0,20798.0,0.33389743]
[1673714826886,0.480792,20799.0,20798.0,0.33389743]
[1673714827133,0.631186,20799.0,20798.0,0.24853743]
[1673714827371,0.480792,20799.0,20798.0,0.24653743]
[1673714827651,0.526792,20799.0,20798.0,0.24853743]
[1673714827884,0.511186,20799.0,20798.0,0.24653743]
[1673714828133,0.511186,20799.0,20798.0,0.01125034]
[1673714828134,0.480792,20799.0,20798.0,0.01125034]
[1673714828365,1.34704828,20799.0,20798.0,0.01125034]
[1673714828855,1.68201556,20799.0,20798.0,0.01325034]
[1673714829366,1.98201556,20799.0,20798.0,0.01325034]
[1673714829617,1.91347766,20799.0,20798.0,0.01325034]
[1673714829863,1.69851038,20799.0,20798.0,0.01325034]
[1673714830122,2.3895786,20799.0,20798.0,0.01325034]
[1673714830376,1.92751038,20799.0,20798.0,0.01325034]
[1673714830626,2.42294716,20799.0,20798.0,0.01325034]
[1673714830878,2.38953925,20799.0,20798.0,0.01325034]
[1673714831394,2.03139389,20799.0,20798.0,0.01325034]
[1673714831637,2.38953925,20799.0,20798.0,0.01325034]
[1673714832422,2.38963983,20799.0,20798.0,0.01325034]
[1673714832650,2.10300687,20799.0,20798.0,0.01325034]
[1673714833447,2.52780538,20799.0,20798.0,0.01325034]
[1673714833677,2.10300687,20799.0,20798.0,0.01325034]
[1673714834411,2.3899339,20799.0,20798.0,0.01325034]
[1673714834677,2.10300687,20799.0,20798.0,0.01325034]
[1673714835926,2.38974837,20799.0,20798.0,0.01325034]
[1673714836138,2.10300687,20799.0,20798.0,0.01325034]
[1673714836433,2.87052736,20799.0,20798.0,0.01325034]
[1673714837429,3.18076279,20799.0,20798.0,0.01325034]
[1673714837672,2.87052736,20799.0,20798.0,0.01325034]
[1673714838454,2.58379887,20799.0,20798.0,0.01325034]
[1673714838696,2.87037365,20799.0,20798.0,0.01325034]
[1673714838940,2.58379887,20799.0,20798.0,0.01325034]
[1673714839441,2.23415351,20799.0,20798.0,0.01325034]
[1673714839695,3.02547747,20799.0,20798.0,0.01325034]
[1673714839943,2.59236896,20799.0,20798.0,0.01325034]
[1673714841886,2.87918194,20799.0,20798.0,0.01325034]
[1673714842374,2.59236896,20799.0,20798.0,0.01325034]
[1673714843126,0.480888,20795.0,20790.0,0.55876366]
[1673714843388,0.00395624,20797.0,20790.0,0.06171896]
[1673714843389,2.34164163,20794.0,20790.0,0.06171896]
[1673714843638,2.03287198,20793.0,20790.0,0.06171896]
[1673714843892,2.03287198,20793.0,20788.0,0.0146665]
[1673714843893,1.69397798,20792.0,20788.0,0.0146665]
[1673714844149,0.73098883,20789.0,20788.0,0.0146665]
[1673714844412,1.91564246,20789.0,20788.0,0.0146665]
[1673714844692,1.473463,20789.0,20788.0,0.0146665]
[1673714844957,1.443069,20789.0,20788.0,0.0146665]
[1673714845231,1.473463,20789.0,20788.0,0.0146665]
[1673714845486,1.609463,20789.0,20788.0,0.0146665]
[1673714847018,3.89720642,20789.0,20788.0,5e-07]
[1673714847290,3.89720642,20789.0,20786.0,0.01409357]
[1673714847291,0.1,20788.0,20786.0,0.01409357]
[1673714847598,2.087774,20787.0,20786.0,5.7e-07]
[1673714847840,2.087774,20787.0,20785.0,0.0148062]
[1673714847841,3.2523084,20787.0,20785.0,0.0048062]
[1673714848091,1.48009492,20786.0,20785.0,0.0048062]
[1673714848364,1.94001513,20786.0,20785.0,0.0048062]
[1673714848593,2.20059856,20786.0,20784.0,0.05634156]
[1673714848847,0.73049138,20785.0,20784.0,0.05634156]
[1673714849095,2.17116402,20785.0,20784.0,0.05634156]
[1673714849353,2.51427446,20785.0,20784.0,5.6e-07]
[1673714849603,2.42144251,20785.0,20784.0,5.6e-07]
[1673714849854,5.944e-05,20783.0,20781.0,0.01318511]
[1673714850113,1.67294544,20783.0,20781.0,0.01318511]
[1673714850378,1.70333944,20783.0,20781.0,0.01318511]
[1673714850639,1.58893944,20783.0,20781.0,0.01318511]
[1673714850942,1.58893944,20783.0,20782.0,0.00952564]
[1673714851396,1.72493944,20783.0,20782.0,0.00952564]
[1673714851650,1.60993944,20783.0,20782.0,0.00952564]
[1673714851889,1.60993944,20783.0,20782.0,0.09688564]
[1673714852140,1.57954544,20783.0,20782.0,0.00952564]
[1673714852399,1.60993944,20783.0,20782.0,0.00952564]
[1673714852639,1.57954544,20783.0,20782.0,0.00952564]
[1673714852898,1.60993944,20783.0,20782.0,0.00952564]
[1673714853903,1.57954544,20783.0,20782.0,0.00952564]
[1673714854405,1.09838344,20783.0,20782.0,0.41216549]
[1673714854650,0.48122144,20783.0,20782.0,0.41216549]
[1673714855148,0.61722144,20783.0,20782.0,0.41416549]
[1673714855401,0.13605944,20783.0,20782.0,0.84910649]
[1673714855621,0.18605944,20783.0,20782.0,1.45110649]
[1673714856448,5.944e-05,20783.0,20782.0,1.44710649]
[1673714856684,5.944e-05,20783.0,20782.0,1.13382664]
[1673714856685,0.04905944,20783.0,20782.0,1.13382664]
[1673714856903,5.944e-05,20783.0,20782.0,1.43182664]
[1673714857184,0.01405944,20783.0,20782.0,1.14482664]
[1673714857426,0.01405944,20783.0,20782.0,1.62601164]
[1673714858474,5.944e-05,20783.0,20782.0,1.61301164]
[1673714859237,5.944e-05,20783.0,20782.0,2.10719664]
[1673714859489,0.01405944,20783.0,20782.0,2.10719664]
[1673714859998,0.01405944,20783.0,20782.0,1.80719664]
[1673714861026,0.01405944,20783.0,20782.0,0.83823779]
[1673714865677,0.01405944,20783.0,20782.0,0.75087779]
[1673714865948,0.01405944,20783.0,20782.0,0.34246664]
[1673714865949,1.45754544,20783.0,20782.0,0.34246664]
[1673714866222,1.45754544,20783.0,20782.0,0.02252564]
[1673714866752,1.45754544,20783.0,20782.0,0.01752564]
[1673714871026,1.45754544,20783.0,20782.0,0.10488564]
[1673714871522,1.45754544,20783.0,20782.0,0.01752564]
[1673714871779,0.49522144,20783.0,20782.0,0.47775674]
[1673714872033,0.01405944,20783.0,20782.0,0.47775674]
[1673714872296,0.01405944,20783.0,20782.0,0.79769774]
[1673714874373,0.01405944,20783.0,20782.0,1.27888274]
[1673714875165,0.01405944,20783.0,20782.0,1.02001164]
[1673714875358,0.01405944,20783.0,20782.0,1.32683837]
[1673714876905,0.01397484,20783.0,20782.0,1.32683837]
[1673714877417,0.01397484,20783.0,20782.0,0.84565337]
[1673714878925,0.01397484,20783.0,20782.0,1.50119664]
[1673714879177,0.01397484,20783.0,20782.0,1.91609664]
[1673714879436,0.00098817,20787.0,20783.0,0.11180394]
[1673714879687,0.48205817,20787.0,20786.0,0.1141]
[1673714879945,0.00098817,20787.0,20786.0,0.433972]
[1673714880196,0.481068,20788.0,20786.0,0.1141]
[1673714880712,0.007,20787.0,20786.0,0.1141]
[1673714881716,0.962081,20789.0,20786.0,0.1141]
[1673714881972,0.135,20787.0,20786.0,0.1171]
[1673714882256,0.135,20787.0,20786.0,0.40183619]
[1673714882499,0.96206,20789.0,20786.0,0.71877719]
[1673714882500,0.481037,20789.0,20786.0,0.71877719]
[1673714882879,0.481037,20789.0,20787.0,0.180477]
[1673714882880,0.481048,20788.0,20787.0,0.180477]
[1673714883024,0.962094,20788.0,20786.0,0.39883619]
[1673714883529,0.135,20787.0,20786.0,0.40183619]
[1673714883790,0.962094,20788.0,20786.0,0.39883619]
[1673714884041,1.098094,20788.0,20787.0,0.08736]
[1673714884256,0.481046,20788.0,20787.0,0.08736]
[1673714884555,0.616046,20788.0,20787.0,0.08736]
[1673714885079,0.616046,20788.0,20786.0,0.40183619]
[1673714885323,0.616046,20788.0,20787.0,0.28481054]
[1673714885324,0.481046,20788.0,20787.0,0.28481054]
[1673714885597,0.617046,20788.0,20787.0,0.28781054]
[1673714886620,0.136,20788.0,20787.0,0.28781054]
[1673714886857,0.00658375,20790.0,20787.0,2.11960495]
[1673714887119,0.00658375,20790.0,20789.0,0.23]
[1673714887367,0.00658375,20790.0,20789.0,1.511953]
[1673714887632,0.00658375,20790.0,20789.0,1.35559598]
[1673714887885,0.00658375,20790.0,20789.0,0.434907]
[1673714888137,0.00648084,20790.0,20789.0,0.319907]
[1673714888394,0.00648084,20790.0,20788.0,0.30044978]
[1673714888653,0.19242125,20790.0,20789.0,0.319941]
[1673714888906,0.48748784,20790.0,20789.0,0.01775675]
[1673714889163,0.50748784,20790.0,20789.0,0.02475675]
[1673714889417,0.96848784,20790.0,20789.0,0.01775675]
[1673714889923,0.98848784,20790.0,20789.0,0.02475675]
[1673714890204,0.97348784,20790.0,20789.0,0.01775675]
[1673714890528,0.99248784,20790.0,20789.0,0.02775675]
[1673714891733,0.92248784,20790.0,20789.0,0.02775675]
[1673714893997,0.92248784,20790.0,20789.0,0.11511675]
[1673714894255,0.92248784,20790.0,20789.0,0.02775675]
[1673714894758,0.92248784,20790.0,20789.0,0.11511675]
[1673714895001,0.39769584,20791.0,20789.0,0.35963237]
[1673714895265,0.481007,20790.0,20789.0,0.35963237]
[1673714895518,0.480969,20792.0,20789.0,0.11511675]
[1673714895767,0.480948,20793.0,20790.0,0.59505202]
[1673714896020,0.480948,20793.0,20791.0,0.180369]
[1673714896268,0.480948,20793.0,20790.0,0.27511102]
[1673714896769,0.66688841,20793.0,20790.0,0.27511102]
[1673714897018,0.66688841,20793.0,20789.0,0.01775675]
[1673714897019,1.26201941,20793.0,20789.0,0.01775675]
[1673714897236,0.030394,20792.0,20789.0,0.01775675]
[1673714897490,0.961954,20791.0,20789.0,0.01775675]
[1673714897738,0.961954,20791.0,20790.0,0.142]
[1673714897988,0.961954,20791.0,20789.0,0.01775675]
[1673714898252,0.961954,20791.0,20789.0,0.08375675]
[1673714898500,0.961954,20791.0,20789.0,0.01775675]
[1673714899019,0.956954,20791.0,20789.0,0.01775675]
[1673714899270,0.956954,20791.0,20789.0,0.06375675]
[1673714899536,0.956954,20791.0,20789.0,0.01775675]
[1673714899814,0.956954,20791.0,20789.0,0.02075675]
[1673714900566,0.956954,20791.0,20789.0,0.01775675]
[1673714900817,0.956954,20791.0,20789.0,0.02075675]
[1673714901887,0.030394,20790.0,20789.0,0.02075675]
[1673714902077,0.511394,20790.0,20789.0,0.02075675]
[1673714902335,0.962,20790.0,20789.0,0.02075675]
[1673714903076,0.962,20790.0,20789.0,0.01775675]
[1673714903335,0.962,20790.0,20789.0,0.02075675]
[1673714903838,1.443,20790.0,20789.0,0.02075675]
[1673714904597,1.587394,20790.0,20789.0,0.02075675]
[1673714904908,2.06009754,20790.0,20789.0,0.02075675]
[1673714905129,2.36009754,20790.0,20789.0,0.02075675]
[1673714905386,2.06009754,20790.0,20789.0,0.02075675]
[1673714905687,1.84548411,20790.0,20789.0,0.02075675]
[1673714906458,1.473394,20790.0,20789.0,0.02075675]
[1673714907487,1.443,20790.0,20789.0,0.02075675]
[1673714907725,1.473394,20790.0,20789.0,0.02075675]
[1673714908310,1.443,20790.0,20789.0,0.02075675]
[1673714908500,1.473394,20790.0,20789.0,0.01575675]
[1673714909554,1.443,20790.0,20789.0,0.01575675]
[1673714909791,1.887394,20790.0,20789.0,0.01575675]
[1673714910061,2.28854523,20790.0,20789.0,0.01575675]
[1673714910319,2.79351484,20790.0,20789.0,0.01575675]
[1673714910585,2.50736361,20790.0,20789.0,0.01575675]
[1673714910843,2.14880016,20790.0,20789.0,0.01382256]
[1673714911098,0.00573379,20788.0,20782.0,0.00452564]
[1673714911348,0.1142,20783.0,20782.0,0.00452564]
[1673714911604,1.74362641,20783.0,20782.0,0.00452564]
[1673714911861,1.77402041,20783.0,20782.0,0.00452564]
[1673714912132,1.557686,20783.0,20782.0,0.00452564]
[1673714912378,1.443486,20783.0,20782.0,0.29443904]
[1673714912677,1.443486,20783.0,20782.0,0.09188564]
[1673714912678,0.962324,20783.0,20782.0,0.09188564]
[1673714912881,0.48114,20784.0,20782.0,0.09188564]
[1673714913133,0.48114,20784.0,20782.0,0.30796628]
[1673714913648,0.962279,20784.0,20782.0,0.30796628]
[1673714914709,0.967279,20784.0,20782.0,0.40496628]
[1673714914928,0.962279,20784.0,20782.0,0.30796628]
[1673714915178,0.967279,20784.0,20782.0,0.10152564]
[1673714918843,0.030394,20783.0,20782.0,0.10152564]
[1673714919106,0.962324,20783.0,20782.0,0.10152564]
[1673714919881,0.962324,20783.0,20782.0,0.00452564]
[1673714920133,0.967324,20783.0,20782.0,0.10152564]
[1673714921411,0.486162,20783.0,20782.0,0.43602222]
[1673714922169,0.005,20783.0,20782.0,0.62674817]
[1673714922420,0.005,20783.0,20782.0,0.75596322]
[1673714923189,0.005,20783.0,20782.0,1.79883664]
[1673714923443,0.005,20783.0,20782.0,1.94245194]
[1673714923939,0.005,20783.0,20782.0,1.79883664]
[1673714924438,0.00097888,20787.0,20782.0,1.70183664]
[1673714924690,0.00097888,20787.0,20784.0,0.115]
[1673714924940,0.00097888,20787.0,20785.0,0.319889]
[1673714925188,0.00097888,20787.0,20786.0,0.180556]
[1673714925451,0.48678679,20788.0,20784.0,0.115]
[1673714925690,0.48678679,20788.0,20785.0,0.26499451]
[1673714925938,0.48678679,20788.0,20785.0,0.45572046]
[1673714926188,0.00573379,20788.0,20786.0,0.319941]
[1673714926452,0.00573379,20788.0,20785.0,0.26499451]
[1673714926453,0.00573379,20788.0,20787.0,0.180477]
[1673714926720,0.00573379,20788.0,20785.0,0.74610851]
[1673714926861,0.00573379,20788.0,20785.0,0.88610851]
[1673714927541,0.00573379,20788.0,20785.0,0.74610851]
[1673714927784,0.00573379,20788.0,20785.0,0.26499451]
[1673714928062,0.48678079,20788.0,20785.0,0.26499451]
[1673714928294,0.48678079,20788.0,20785.0,0.40499451]
[1673714930263,0.96782679,20788.0,20785.0,0.40499451]
[1673714932940,0.96782679,20788.0,20785.0,0.40488034]
[1673714934211,0.96782679,20788.0,20785.0,0.14]
[1673714935461,0.96782679,20788.0,20786.0,0.30832228]
[1673714935689,0.00573379,20788.0,20787.0,1.076538]
[1673714935978,0.00573379,20788.0,20787.0,0.434341]
[1673714936732,0.00573379,20788.0,20787.0,1.82383696]
[1673714936966,0.00573379,20788.0,20787.0,1.68022166]
[1673714937202,0.00573379,20788.0,20787.0,1.73722166]
[1673714937911,0.00573379,20788.0,20787.0,1.88083696]
[1673714938146,0.00573379,20788.0,20787.0,1.98083696]
[1673714938385,0.00573379,20788.0,20787.0,1.88083696]
[1673714938875,0.00573379,20788.0,20787.0,1.553479]
[1673714939130,0.00573379,20788.0,20787.0,3.84424884]
[1673714939633,0.00573379,20788.0,20787.0,3.84442075]
[1673714939870,0.00573379,20788.0,20787.0,3.70063354]
[1673714940438,0.00573379,20788.0,20787.0,0.85011294]
[1673714940696,0.00573379,20788.0,20787.0,0.62071294]
[1673714941196,0.00573379,20788.0,20787.0,0.75971294]
[1673714941927,0.00573379,20788.0,20787.0,0.62071294]
[1673714942171,0.00573379,20788.0,20787.0,0.75971294]